[Event "Titled Tuesday Blitz August 15 Late 2023"]
[White "Ottosen, David"]
[Black "tomobeast"]
[WhiteFideId "2603080"]
[WhiteElo "2131"]
[BlackElo "2218"]
[Result "1-0"]
[Round "10"]
[TimeControl "180+1"]
[Date "2023.08.15"]
[WhiteClock "0:01:40"]
[BlackClock "0:01:42"]
[Board "101"]

1. e4 {[%clk 0:03:00]}  c6 {[%clk 0:02:44]} 2. d4 {[%clk 0:02:59]}  d5 {[%clk 0:02:45]} 3. e5 {[%clk 0:02:58]}  Bf5 {[%clk 0:02:41]} 4. Nf3 {[%clk 0:02:59]}  h5 {[%clk 0:02:42]} 5. Be2 {[%clk 0:02:59]}  e6 {[%clk 0:02:39]} 6. O-O {[%clk 0:03:00]}  Nd7 {[%clk 0:02:39]} 7. Re1 {[%clk 0:02:59]}  c5 {[%clk 0:02:36]} 8. c3 {[%clk 0:02:59]}  Rc8 {[%clk 0:02:34]} 9. Nbd2 {[%clk 0:02:58]}  Nh6 {[%clk 0:02:32]} 10. Nf1 {[%clk 0:02:58]}  Be4 {[%clk 0:02:27]} 11. Ng3 {[%clk 0:02:57]}  Bxf3 {[%clk 0:02:25]} 12. Bxf3 {[%clk 0:02:57]}  h4 {[%clk 0:02:26]} 13. Nf1 {[%clk 0:02:56]}  h3 {[%clk 0:02:23]} 14. g3 {[%clk 0:02:55]}  Be7 {[%clk 0:02:22]} 15. Be3 {[%clk 0:02:50]}  Nf5 {[%clk 0:02:22]} 16. Qd2 {[%clk 0:02:50]}  c4 {[%clk 0:02:18]} 17. Bg4 {[%clk 0:02:29]}  Nxe3 {[%clk 0:02:15]} 18. Qxe3 {[%clk 0:02:26]}  Nf8 {[%clk 0:02:16]} 19. Nd2 {[%clk 0:02:12]}  Ng6 {[%clk 0:02:17]} 20. Nf3 {[%clk 0:02:08]}  O-O {[%clk 0:02:11]} 21. Kh1 {[%clk 0:02:08]}  Rc6 {[%clk 0:02:02]} 22. Ng1 {[%clk 0:02:07]}  f5 {[%clk 0:02:02]} 23. exf6 {[%clk 0:02:06]}  Rxf6 {[%clk 0:02:03]} 24. Bxh3 {[%clk 0:01:58]}  Qf8 {[%clk 0:02:03]} 25. f4 {[%clk 0:01:56]}  Qf7 {[%clk 0:02:02]} 26. Nf3 {[%clk 0:01:56]}  Nf8 {[%clk 0:02:01]} 27. Ne5 {[%clk 0:01:55]}  Qe8 {[%clk 0:02:01]} 28. Nxc6 {[%clk 0:01:56]}  bxc6 {[%clk 0:01:59]} 29. Re2 {[%clk 0:01:51]}  Qf7 {[%clk 0:01:59]} 30. Rae1 {[%clk 0:01:51]}  c5 {[%clk 0:01:58]} 31. Qf2 {[%clk 0:01:50]}  cxd4 {[%clk 0:01:58]} 32. cxd4 {[%clk 0:01:49]}  Rh6 {[%clk 0:01:58]} 33. Bg2 {[%clk 0:01:43]}  Qh5 {[%clk 0:01:54]} 34. Bf3 {[%clk 0:01:40]}  Rg6 {[%clk 0:01:42]} 35. Bxh5 {[%clk 0:01:40]} 1-0


[Site "https://www.chess.com"]

[Event "Titled Tuesday Blitz August 15 Late 2023"]
[White "Osmonbekov, Talaibek"]
[Black "Hartikainen, Jarmo"]
[WhiteFideId "2017253"]
[BlackFideId "503134"]
[WhiteElo "2202"]
[BlackElo "2109"]
[Result "1-0"]
[Round "10"]
[TimeControl "180+1"]
[Date "2023.08.15"]
[WhiteClock "0:00:08"]
[BlackClock "0:00:07"]
[Board "102"]

1. d4 {[%clk 0:03:00]}  d5 {[%clk 0:02:59]} 2. Bf4 {[%clk 0:03:01]}  Bf5 {[%clk 0:02:56]} 3. Nc3 {[%clk 0:03:01]}  e6 {[%clk 0:02:51]} 4. e3 {[%clk 0:03:01]}  Bd6 {[%clk 0:02:49]} 5. Nf3 {[%clk 0:03:01]}  Bxf4 {[%clk 0:02:46]} 6. exf4 {[%clk 0:03:02]}  Nf6 {[%clk 0:02:37]} 7. Ne5 {[%clk 0:03:01]}  h5 {[%clk 0:02:32]} 8. Bd3 {[%clk 0:02:55]}  g6 {[%clk 0:02:12]} 9. O-O {[%clk 0:02:49]}  Nbd7 {[%clk 0:02:06]} 10. Re1 {[%clk 0:02:47]}  a6 {[%clk 0:01:58]} 11. Na4 {[%clk 0:02:12]}  b5 {[%clk 0:01:32]} 12. Nc6 {[%clk 0:02:08]}  Qc8 {[%clk 0:01:25]} 13. Bxf5 {[%clk 0:02:04]}  gxf5 {[%clk 0:01:23]} 14. Nc5 {[%clk 0:01:54]}  Nxc5 {[%clk 0:01:17]} 15. dxc5 {[%clk 0:01:55]}  Rg8 {[%clk 0:01:04]} 16. Qd4 {[%clk 0:01:51]}  Ng4 {[%clk 0:00:33]} 17. h3 {[%clk 0:01:41]}  Qd7 {[%clk 0:00:32]} 18. Na5 {[%clk 0:01:41]}  Nh6 {[%clk 0:00:27]} 19. Qf6 {[%clk 0:01:36]}  Rg6 {[%clk 0:00:24]} 20. Qh8+ {[%clk 0:01:29]}  Ng8 {[%clk 0:00:22]} 21. Qxh5 {[%clk 0:01:11]}  O-O-O {[%clk 0:00:21]} 22. a4 {[%clk 0:00:58]}  Nf6 {[%clk 0:00:20]} 23. Qe2 {[%clk 0:00:47]}  Rdg8 {[%clk 0:00:20]} 24. g3 {[%clk 0:00:46]}  c6 {[%clk 0:00:21]} 25. axb5 {[%clk 0:00:40]}  cxb5 {[%clk 0:00:21]} 26. Nb3 {[%clk 0:00:39]}  Qc7 {[%clk 0:00:21]} 27. Rxa6 {[%clk 0:00:37]}  Qxf4 {[%clk 0:00:22]} 28. Ra8+ {[%clk 0:00:34]}  Kc7 {[%clk 0:00:21]} 29. Rxg8 {[%clk 0:00:33]}  Rxg8 {[%clk 0:00:20]} 30. Kg2 {[%clk 0:00:31]}  Ne4 {[%clk 0:00:20]} 31. Qf3 {[%clk 0:00:15]}  Qxf3+ {[%clk 0:00:20]} 32. Kxf3 {[%clk 0:00:16]}  Kc6 {[%clk 0:00:19]} 33. h4 {[%clk 0:00:16]}  Nxc5 {[%clk 0:00:19]} 34. Nd4+ {[%clk 0:00:15]}  Kb6 {[%clk 0:00:19]} 35. c3 {[%clk 0:00:14]}  Ne4 {[%clk 0:00:19]} 36. Ra1 {[%clk 0:00:14]}  Nd2+ {[%clk 0:00:16]} 37. Ke2 {[%clk 0:00:13]}  Nc4 {[%clk 0:00:16]} 38. b3 {[%clk 0:00:13]}  Na5 {[%clk 0:00:13]} 39. b4 {[%clk 0:00:13]}  Nc4 {[%clk 0:00:12]} 40. Nf3 {[%clk 0:00:11]}  e5 {[%clk 0:00:12]} 41. Ng5 {[%clk 0:00:11]}  f6 {[%clk 0:00:11]} 42. Ne6 {[%clk 0:00:09]}  Rc8 {[%clk 0:00:10]} 43. Nc5 {[%clk 0:00:10]}  Rc7 {[%clk 0:00:07]} 44. Ra6# {[%clk 0:00:08]} 1-0


[Site "https://www.chess.com"]

[Event "Titled Tuesday Blitz August 15 Late 2023"]
[White "laskakid"]
[Black "Joubert, Dantelle"]
[BlackFideId "14310813"]
[WhiteElo "2136"]
[BlackElo "2062"]
[Result "0-1"]
[Round "10"]
[TimeControl "180+1"]
[Date "2023.08.15"]
[WhiteClock "0:00:04"]
[BlackClock "0:00:33"]
[Board "104"]

1. Nf3 {[%clk 0:03:00]}  d5 {[%clk 0:02:58]} 2. g3 {[%clk 0:02:59]}  Nf6 {[%clk 0:02:58]} 3. Bg2 {[%clk 0:02:59]}  e6 {[%clk 0:02:56]} 4. O-O {[%clk 0:02:59]}  Be7 {[%clk 0:02:56]} 5. c4 {[%clk 0:02:59]}  O-O {[%clk 0:02:55]} 6. b3 {[%clk 0:02:59]}  c5 {[%clk 0:02:55]} 7. cxd5 {[%clk 0:02:58]}  Nxd5 {[%clk 0:02:54]} 8. Nc3 {[%clk 0:02:54]}  Nc6 {[%clk 0:02:50]} 9. Nxd5 {[%clk 0:02:47]}  exd5 {[%clk 0:02:50]} 10. d4 {[%clk 0:02:46]}  Bf6 {[%clk 0:02:49]} 11. Bb2 {[%clk 0:02:46]}  Bg4 {[%clk 0:02:44]} 12. Rc1 {[%clk 0:02:33]}  Bxf3 {[%clk 0:02:37]} 13. Bxf3 {[%clk 0:02:33]}  cxd4 {[%clk 0:02:37]} 14. a3 {[%clk 0:02:22]}  Qd6 {[%clk 0:02:29]} 15. b4 {[%clk 0:02:20]}  a6 {[%clk 0:02:27]} 16. Qb3 {[%clk 0:02:20]}  Rad8 {[%clk 0:02:20]} 17. Rc5 {[%clk 0:02:14]}  Ne7 {[%clk 0:01:37]} 18. Rfc1 {[%clk 0:02:13]}  b6 {[%clk 0:01:36]} 19. Rc7 {[%clk 0:02:07]}  Rd7 {[%clk 0:01:34]} 20. R7c2 {[%clk 0:02:01]}  Rfd8 {[%clk 0:01:28]} 21. Qd3 {[%clk 0:02:00]}  Qe5 {[%clk 0:01:24]} 22. Qxa6 {[%clk 0:01:56]}  Rd6 {[%clk 0:01:12]} 23. Qd3 {[%clk 0:01:45]}  Nf5 {[%clk 0:01:08]} 24. Rc7 {[%clk 0:01:32]}  g6 {[%clk 0:01:05]} 25. a4 {[%clk 0:01:15]}  Re6 {[%clk 0:01:00]} 26. a5 {[%clk 0:01:08]}  bxa5 {[%clk 0:00:57]} 27. bxa5 {[%clk 0:01:07]}  Nd6 {[%clk 0:00:58]} 28. a6 {[%clk 0:00:57]}  Nc4 {[%clk 0:00:56]} 29. Qb3 {[%clk 0:00:46]}  Qxc7 {[%clk 0:00:54]} 30. Bxd5 {[%clk 0:00:41]}  Rxd5 {[%clk 0:00:44]} 31. Rxc4 {[%clk 0:00:40]}  Qa7 {[%clk 0:00:41]} 32. Rc8+ {[%clk 0:00:27]}  Rd8 {[%clk 0:00:40]} 33. Rxd8+ {[%clk 0:00:20]}  Bxd8 {[%clk 0:00:41]} 34. Qc4 {[%clk 0:00:16]}  Qxa6 {[%clk 0:00:34]} 35. Qxd4 {[%clk 0:00:10]}  Bf6 {[%clk 0:00:34]} 36. Qd2 {[%clk 0:00:09]}  Bxb2 {[%clk 0:00:32]} 37. Qxb2 {[%clk 0:00:09]}  Qxe2 {[%clk 0:00:32]} 38. Qb8+ {[%clk 0:00:09]}  Kg7 {[%clk 0:00:32]} 39. Qf4 {[%clk 0:00:08]}  Qe1+ {[%clk 0:00:32]} 40. Kg2 {[%clk 0:00:07]}  Qe4+ {[%clk 0:00:32]} 41. Qxe4 {[%clk 0:00:04]}  Rxe4 {[%clk 0:00:33]} 0-1


[Site "https://www.chess.com"]

[Event "Titled Tuesday Blitz August 15 Late 2023"]
[White "Burke, Paul"]
[Black "Petersson, Kjell"]
[WhiteFideId "2605767"]
[BlackFideId "1705148"]
[WhiteElo "1845"]
[BlackElo "2168"]
[Result "0-1"]
[Round "10"]
[TimeControl "180+1"]
[Date "2023.08.15"]
[WhiteClock "0:00:00"]
[BlackClock "0:00:52"]
[Board "105"]

1. e4 {[%clk 0:02:55]}  c5 {[%clk 0:03:00]} 2. d4 {[%clk 0:02:55]}  cxd4 {[%clk 0:02:59]} 3. c3 {[%clk 0:02:55]}  d5 {[%clk 0:02:59]} 4. exd5 {[%clk 0:02:54]}  Qxd5 {[%clk 0:02:59]} 5. cxd4 {[%clk 0:02:55]}  Nc6 {[%clk 0:02:57]} 6. Nf3 {[%clk 0:02:55]}  e5 {[%clk 0:02:57]} 7. Be3 {[%clk 0:02:54]}  e4 {[%clk 0:02:48]} 8. Nfd2 {[%clk 0:02:53]}  Nf6 {[%clk 0:02:22]} 9. Nc3 {[%clk 0:02:53]}  Qa5 {[%clk 0:02:08]} 10. Nc4 {[%clk 0:02:52]}  Qd8 {[%clk 0:01:53]} 11. d5 {[%clk 0:02:51]}  Nb8 {[%clk 0:01:34]} 12. d6 {[%clk 0:02:51]}  Be6 {[%clk 0:01:25]} 13. Qa4+ {[%clk 0:02:48]}  Nc6 {[%clk 0:01:23]} 14. Ne5 {[%clk 0:02:44]}  Qxd6 {[%clk 0:01:12]} 15. Nxc6 {[%clk 0:02:43]}  bxc6 {[%clk 0:01:11]} 16. Rd1 {[%clk 0:02:42]}  Qc7 {[%clk 0:01:09]} 17. Bf4 {[%clk 0:02:41]}  Qb7 {[%clk 0:01:04]} 18. Ba6 {[%clk 0:02:29]}  Qb6 {[%clk 0:00:57]} 19. O-O {[%clk 0:00:00]}  Be7 {[%clk 0:00:52]} 0-1


[Site "https://www.chess.com"]

[Event "Titled Tuesday Blitz August 15 Late 2023"]
[White "cthake"]
[Black "Maluco_do_Natal_00"]
[WhiteElo "1832"]
[BlackElo "2070"]
[Result "0-1"]
[Round "10"]
[TimeControl "180+1"]
[Date "2023.08.15"]
[WhiteClock "0:00:32"]
[BlackClock "0:00:15"]
[Board "106"]

1. e4 {[%clk 0:03:00]}  c5 {[%clk 0:02:59]} 2. Nc3 {[%clk 0:02:55]}  Nc6 {[%clk 0:02:59]} 3. f4 {[%clk 0:02:54]}  d6 {[%clk 0:02:58]} 4. Nf3 {[%clk 0:02:54]}  g6 {[%clk 0:02:59]} 5. Bc4 {[%clk 0:02:54]}  Bg7 {[%clk 0:02:59]} 6. d3 {[%clk 0:02:54]}  Bg4 {[%clk 0:02:58]} 7. Bxf7+ {[%clk 0:02:47]}  Kxf7 {[%clk 0:02:57]} 8. Ng5+ {[%clk 0:02:47]}  Ke8 {[%clk 0:02:57]} 9. Qxg4 {[%clk 0:02:47]}  Qd7 {[%clk 0:02:43]} 10. Ne6 {[%clk 0:02:23]}  Bxc3+ {[%clk 0:02:43]} 11. bxc3 {[%clk 0:02:18]}  Nf6 {[%clk 0:02:39]} 12. Qh3 {[%clk 0:02:14]}  h5 {[%clk 0:02:19]} 13. f5 {[%clk 0:02:06]}  Ne5 {[%clk 0:01:57]} 14. O-O {[%clk 0:01:59]}  Neg4 {[%clk 0:01:34]} 15. Bg5 {[%clk 0:01:51]}  Qa4 {[%clk 0:01:18]} 16. Bxf6 {[%clk 0:01:50]}  Nxf6 {[%clk 0:01:05]} 17. Nc7+ {[%clk 0:01:48]}  Kf7 {[%clk 0:01:03]} 18. Nxa8 {[%clk 0:01:47]}  Rxa8 {[%clk 0:01:01]} 19. fxg6+ {[%clk 0:01:47]}  Kg7 {[%clk 0:00:58]} 20. Rf2 {[%clk 0:01:35]}  Ng4 {[%clk 0:00:51]} 21. Rf7+ {[%clk 0:01:28]}  Kxg6 {[%clk 0:00:51]} 22. Rxe7 {[%clk 0:01:27]}  Qxc2 {[%clk 0:00:46]} 23. Rf1 {[%clk 0:01:24]}  Qxc3 {[%clk 0:00:38]} 24. Re6+ {[%clk 0:01:22]}  Kg7 {[%clk 0:00:22]} 25. Qxh5 {[%clk 0:00:53]}  Qd4+ {[%clk 0:00:21]} 26. Kh1 {[%clk 0:00:52]}  Nf2+ {[%clk 0:00:18]} 27. Rxf2 {[%clk 0:00:32]}  Qa1+ {[%clk 0:00:15]} 0-1


[Site "https://www.chess.com"]

[Event "Titled Tuesday Blitz August 15 Late 2023"]
[White "Vachier-Lagrave, Maxime"]
[Black "Martinez Alcantara, Jose Eduardo"]
[WhiteFideId "623539"]
[BlackFideId "3805662"]
[WhiteElo "3132"]
[BlackElo "3015"]
[Result "1-0"]
[Round "11"]
[TimeControl "180+1"]
[Date "2023.08.15"]
[WhiteClock "0:00:07"]
[BlackClock "0:00:15"]
[Board "3"]

1. d4 {[%clk 0:02:55]}  Nf6 {[%clk 0:03:00]} 2. c4 {[%clk 0:02:55]}  e6 {[%clk 0:03:01]} 3. Nf3 {[%clk 0:02:54]}  Bb4+ {[%clk 0:03:01]} 4. Nbd2 {[%clk 0:02:51]}  O-O {[%clk 0:03:01]} 5. a3 {[%clk 0:02:50]}  Be7 {[%clk 0:03:01]} 6. e4 {[%clk 0:02:51]}  d6 {[%clk 0:03:02]} 7. Be2 {[%clk 0:02:48]}  a5 {[%clk 0:03:02]} 8. b3 {[%clk 0:02:47]}  c5 {[%clk 0:02:51]} 9. d5 {[%clk 0:02:44]}  Nbd7 {[%clk 0:02:48]} 10. Qc2 {[%clk 0:02:39]}  Re8 {[%clk 0:02:48]} 11. dxe6 {[%clk 0:02:35]}  fxe6 {[%clk 0:02:49]} 12. e5 {[%clk 0:02:36]}  Nxe5 {[%clk 0:02:49]} 13. Nxe5 {[%clk 0:02:36]}  dxe5 {[%clk 0:02:50]} 14. Bb2 {[%clk 0:02:36]}  Qc7 {[%clk 0:02:48]} 15. Bf3 {[%clk 0:02:31]}  Bd7 {[%clk 0:02:48]} 16. O-O {[%clk 0:02:29]}  a4 {[%clk 0:02:42]} 17. Rfe1 {[%clk 0:02:29]}  axb3 {[%clk 0:02:42]} 18. Qxb3 {[%clk 0:02:29]}  Bd6 {[%clk 0:02:26]} 19. Ne4 {[%clk 0:02:07]}  Nxe4 {[%clk 0:02:14]} 20. Bxe4 {[%clk 0:02:08]}  Bc6 {[%clk 0:02:14]} 21. Bxc6 {[%clk 0:02:08]}  Qxc6 {[%clk 0:02:15]} 22. Bxe5 {[%clk 0:02:08]}  Bf8 {[%clk 0:02:16]} 23. Re3 {[%clk 0:01:56]}  Red8 {[%clk 0:02:03]} 24. h4 {[%clk 0:01:55]}  Rd7 {[%clk 0:02:01]} 25. a4 {[%clk 0:01:43]}  Rf7 {[%clk 0:01:52]} 26. Qb5 {[%clk 0:01:32]}  Rc8 {[%clk 0:01:41]} 27. Rd1 {[%clk 0:01:22]}  h6 {[%clk 0:01:37]} 28. g3 {[%clk 0:01:13]}  Be7 {[%clk 0:00:50]} 29. Bc3 {[%clk 0:01:09]}  Bf8 {[%clk 0:00:49]} 30. Rde1 {[%clk 0:01:01]}  Ra8 {[%clk 0:00:42]} 31. Qxc6 {[%clk 0:01:00]}  bxc6 {[%clk 0:00:43]} 32. a5 {[%clk 0:00:59]}  Rb7 {[%clk 0:00:36]} 33. Rxe6 {[%clk 0:00:59]}  Rb3 {[%clk 0:00:36]} 34. R1e3 {[%clk 0:00:59]}  Ra3 {[%clk 0:00:30]} 35. Rxc6 {[%clk 0:00:42]}  Rd8 {[%clk 0:00:31]} 36. Kg2 {[%clk 0:00:38]}  Ra4 {[%clk 0:00:31]} 37. Re4 {[%clk 0:00:34]}  Rd3 {[%clk 0:00:32]} 38. Be1 {[%clk 0:00:34]}  Rd8 {[%clk 0:00:30]} 39. Rb6 {[%clk 0:00:28]}  Rd4 {[%clk 0:00:28]} 40. Rxd4 {[%clk 0:00:23]}  cxd4 {[%clk 0:00:29]} 41. Rc6 {[%clk 0:00:20]}  Ra1 {[%clk 0:00:26]} 42. Bd2 {[%clk 0:00:20]}  Ra2 {[%clk 0:00:27]} 43. Be1 {[%clk 0:00:18]}  Ra1 {[%clk 0:00:27]} 44. Re6 {[%clk 0:00:19]}  Ra4 {[%clk 0:00:25]} 45. Kf3 {[%clk 0:00:17]}  Rxc4 {[%clk 0:00:25]} 46. Ke4 {[%clk 0:00:17]}  Kf7 {[%clk 0:00:25]} 47. Rb6 {[%clk 0:00:17]}  Ra4 {[%clk 0:00:23]} 48. Bd2 {[%clk 0:00:15]}  Bc5 {[%clk 0:00:18]} 49. Rb5 {[%clk 0:00:15]}  d3+ {[%clk 0:00:17]} 50. Kxd3 {[%clk 0:00:14]}  Bd6 {[%clk 0:00:13]} 51. Be3 {[%clk 0:00:14]}  Ke6 {[%clk 0:00:13]} 52. Bb6 {[%clk 0:00:13]}  Kd7 {[%clk 0:00:13]} 53. Rf5 {[%clk 0:00:13]}  Ke6 {[%clk 0:00:13]} 54. Rb5 {[%clk 0:00:13]}  Kd7 {[%clk 0:00:14]} 55. Ke2 {[%clk 0:00:13]}  Kc6 {[%clk 0:00:14]} 56. Rf5 {[%clk 0:00:13]}  Be7 {[%clk 0:00:13]} 57. Rf7 {[%clk 0:00:12]}  Bf6 {[%clk 0:00:14]} 58. Rc7+ {[%clk 0:00:12]}  Kd5 {[%clk 0:00:13]} 59. Kf3 {[%clk 0:00:12]}  Kd6 {[%clk 0:00:12]} 60. Ra7 {[%clk 0:00:11]}  Kc6 {[%clk 0:00:12]} 61. Kg2 {[%clk 0:00:11]}  Kb5 {[%clk 0:00:13]} 62. Ra8 {[%clk 0:00:11]}  Kc6 {[%clk 0:00:12]} 63. Be3 {[%clk 0:00:10]}  Kb7 {[%clk 0:00:13]} 64. Ra7+ {[%clk 0:00:10]}  Kc6 {[%clk 0:00:13]} 65. h5 {[%clk 0:00:08]}  Kb5 {[%clk 0:00:13]} 66. Bb6 {[%clk 0:00:08]}  Re4 {[%clk 0:00:11]} 67. Rc7 {[%clk 0:00:07]}  Ka6 {[%clk 0:00:09]} 68. f4 {[%clk 0:00:07]}  Re1 {[%clk 0:00:08]} 69. Kf3 {[%clk 0:00:07]}  Rh1 {[%clk 0:00:08]} 70. Kg4 {[%clk 0:00:07]}  Kb5 {[%clk 0:00:08]} 71. Rc5+ {[%clk 0:00:06]}  Ka6 {[%clk 0:00:08]} 72. Rd5 {[%clk 0:00:07]}  Be7 {[%clk 0:00:07]} 73. Bd8 {[%clk 0:00:06]}  Bb4 {[%clk 0:00:05]} 74. Rd7 {[%clk 0:00:06]}  Bc3 {[%clk 0:00:06]} 75. Rd6+ {[%clk 0:00:05]}  Ka7 {[%clk 0:00:04]} 76. a6 {[%clk 0:00:04]}  Ra1 {[%clk 0:00:03]} 77. Bb6+ {[%clk 0:00:04]}  Kxa6 {[%clk 0:00:03]} 78. Bd4+ {[%clk 0:00:04]}  Kb5 {[%clk 0:00:04]} 79. Bxc3 {[%clk 0:00:05]}  Ra7 {[%clk 0:00:05]} 80. Be5 {[%clk 0:00:05]}  Ra2 {[%clk 0:00:06]} 81. Rg6 {[%clk 0:00:05]}  Kc4 {[%clk 0:00:07]} 82. Rxg7 {[%clk 0:00:06]}  Rh2 {[%clk 0:00:07]} 83. Rg6 {[%clk 0:00:06]}  Kd3 {[%clk 0:00:08]} 84. Rxh6 {[%clk 0:00:07]}  Ke4 {[%clk 0:00:09]} 85. Rg6 {[%clk 0:00:07]}  Ra2 {[%clk 0:00:10]} 86. h6 {[%clk 0:00:07]}  Ra8 {[%clk 0:00:11]} 87. h7 {[%clk 0:00:07]}  Rc8 {[%clk 0:00:11]} 88. h8=Q {[%clk 0:00:07]}  Rc1 {[%clk 0:00:12]} 89. Qa8+ {[%clk 0:00:07]}  Kd3 {[%clk 0:00:13]} 90. Qf3+ {[%clk 0:00:07]}  Kd2 {[%clk 0:00:14]} 91. Rd6+ {[%clk 0:00:07]}  Kc2 {[%clk 0:00:15]} 92. Qd3# {[%clk 0:00:07]} 1-0


[Site "https://www.chess.com"]

[Event "Titled Tuesday Blitz August 15 Late 2023"]
[White "Kovalev, Vladislav"]
[Black "Keymer, Vincent"]
[WhiteFideId "13504398"]
[BlackFideId "12940690"]
[WhiteElo "2889"]
[BlackElo "2962"]
[Result "1-0"]
[Round "11"]
[TimeControl "180+1"]
[Date "2023.08.15"]
[WhiteClock "0:02:07"]
[BlackClock "0:02:21"]
[Board "4"]

1. e4 {[%clk 0:03:00]}  c6 {[%clk 0:03:00]} 2. Nf3 {[%clk 0:03:00]}  d5 {[%clk 0:03:01]} 3. d3 {[%clk 0:03:01]}  dxe4 {[%clk 0:03:01]} 4. dxe4 {[%clk 0:03:02]}  Qxd1+ {[%clk 0:03:01]} 5. Kxd1 {[%clk 0:03:02]}  Nd7 {[%clk 0:03:02]} 6. Ne1 {[%clk 0:02:52]}  e5 {[%clk 0:03:02]} 7. f3 {[%clk 0:02:40]}  f5 {[%clk 0:03:01]} 8. exf5 {[%clk 0:02:39]}  Nc5 {[%clk 0:03:01]} 9. Be3 {[%clk 0:02:08]}  Bxf5 {[%clk 0:02:58]} 10. Bxc5 {[%clk 0:02:09]}  Bxc5 {[%clk 0:02:52]} 11. Bd3 {[%clk 0:02:09]}  O-O-O {[%clk 0:02:44]} 12. Nd2 {[%clk 0:02:10]}  Be3 {[%clk 0:02:21]} 13. Bxf5+ {[%clk 0:02:07]} 1-0


[Site "https://www.chess.com"]

[Event "Titled Tuesday Blitz August 15 Late 2023"]
[White "Nakamura, Hikaru"]
[Black "Holt, Conrad"]
[WhiteFideId "2016192"]
[BlackFideId "2034387"]
[WhiteElo "3211"]
[BlackElo "2928"]
[Result "1-0"]
[Round "11"]
[TimeControl "180+1"]
[Date "2023.08.15"]
[WhiteClock "0:00:19"]
[BlackClock "0:00:00"]
[Board "5"]

1. b3 {[%clk 0:03:00]}  d5 {[%clk 0:02:59]} 2. Bb2 {[%clk 0:03:01]}  Bf5 {[%clk 0:02:59]} 3. Ba3 {[%clk 0:03:00]}  Nf6 {[%clk 0:02:56]} 4. Nf3 {[%clk 0:03:00]}  g6 {[%clk 0:02:55]} 5. e3 {[%clk 0:03:00]}  Bg7 {[%clk 0:02:56]} 6. d4 {[%clk 0:03:01]}  O-O {[%clk 0:02:55]} 7. Bd3 {[%clk 0:03:02]}  Ne4 {[%clk 0:02:53]} 8. Nh4 {[%clk 0:02:54]}  Bd7 {[%clk 0:02:49]} 9. c3 {[%clk 0:02:45]}  Re8 {[%clk 0:02:28]} 10. O-O {[%clk 0:02:40]}  a5 {[%clk 0:02:09]} 11. Nf3 {[%clk 0:02:37]}  Nc6 {[%clk 0:02:07]} 12. Qc2 {[%clk 0:02:35]}  e5 {[%clk 0:02:00]} 13. Nbd2 {[%clk 0:02:21]}  Nxd2 {[%clk 0:01:51]} 14. Nxd2 {[%clk 0:02:22]}  a4 {[%clk 0:01:50]} 15. b4 {[%clk 0:02:12]}  Na7 {[%clk 0:01:45]} 16. Rad1 {[%clk 0:02:09]}  Nb5 {[%clk 0:01:39]} 17. Bb2 {[%clk 0:02:06]}  Qe7 {[%clk 0:01:33]} 18. dxe5 {[%clk 0:01:57]}  a3 {[%clk 0:01:20]} 19. Ba1 {[%clk 0:01:57]}  Bxe5 {[%clk 0:01:18]} 20. c4 {[%clk 0:01:45]}  dxc4 {[%clk 0:01:11]} 21. Bxc4 {[%clk 0:01:41]}  Bxa1 {[%clk 0:01:10]} 22. Rxa1 {[%clk 0:01:42]}  Nd6 {[%clk 0:01:04]} 23. Bb3 {[%clk 0:01:39]}  Bf5 {[%clk 0:00:58]} 24. Qc5 {[%clk 0:01:29]}  Rad8 {[%clk 0:00:51]} 25. Rac1 {[%clk 0:01:26]}  c6 {[%clk 0:00:47]} 26. Nf3 {[%clk 0:01:18]}  Bd3 {[%clk 0:00:37]} 27. Rfe1 {[%clk 0:01:12]}  Ne4 {[%clk 0:00:33]} 28. Qxe7 {[%clk 0:01:08]}  Rxe7 {[%clk 0:00:34]} 29. Red1 {[%clk 0:01:08]}  Rdd7 {[%clk 0:00:33]} 30. Nd4 {[%clk 0:01:00]}  Ba6 {[%clk 0:00:33]} 31. f3 {[%clk 0:00:55]}  Nf6 {[%clk 0:00:28]} 32. e4 {[%clk 0:00:54]}  Re8 {[%clk 0:00:19]} 33. Kf2 {[%clk 0:00:51]}  Red8 {[%clk 0:00:17]} 34. Ke3 {[%clk 0:00:51]}  h5 {[%clk 0:00:14]} 35. Rd2 {[%clk 0:00:50]}  Re8 {[%clk 0:00:10]} 36. Rcd1 {[%clk 0:00:46]}  Nd5+ {[%clk 0:00:06]} 37. Bxd5 {[%clk 0:00:46]}  Rxd5 {[%clk 0:00:07]} 38. Nc2 {[%clk 0:00:41]}  Rb5 {[%clk 0:00:07]} 39. Rb1 {[%clk 0:00:24]}  c5 {[%clk 0:00:06]} 40. Nxa3 {[%clk 0:00:25]}  Rxb4 {[%clk 0:00:06]} 41. Rxb4 {[%clk 0:00:25]}  cxb4 {[%clk 0:00:07]} 42. Nc2 {[%clk 0:00:26]}  Bc4 {[%clk 0:00:06]} 43. Nxb4 {[%clk 0:00:27]}  Ra8 {[%clk 0:00:06]} 44. Kd4 {[%clk 0:00:26]}  b5 {[%clk 0:00:03]} 45. Kc3 {[%clk 0:00:26]}  h4 {[%clk 0:00:02]} 46. Kb2 {[%clk 0:00:24]}  Kg7 {[%clk 0:00:02]} 47. a3 {[%clk 0:00:20]}  Kf6 {[%clk 0:00:00]} 48. Nc6 {[%clk 0:00:19]} 1-0


[Site "https://www.chess.com"]